Department Family,Date Paid,Expense Type,Expense Area,Supplier,Transaction Number,Amount,Vat Inclusive
Crown Prosecution Service ,05/01/2021,Crown Court Graduated Fee Scheme,London North Complex Casework Unit,2 Hare Court Chambers -Chambers of Orlando Pownall,115697(1),"26,016.00",Y
Crown Prosecution Service ,05/01/2021,Crown Court Graduated Fee Scheme,Wessex Crown Court Unit,12 College Place,122350NH,"27,001.80",Y
Crown Prosecution Service ,05/01/2021,Crown Court Graduated Fee Scheme,London North Complex Casework Unit,23 Essex Street Chambers,173352-ALH-TRIAL,"27,948.80",Y
Crown Prosecution Service ,05/01/2021,Recoverable VAT control,Balance Sheet,AVR Transcription Ltd Bolton,34780-Nov-20,"10,369.99",Y
Crown Prosecution Service ,05/01/2021,Transcriptions and Translation,Other Corporate Programme Payments,AVR Transcription Ltd Bolton,34780-Nov-20,"51,849.98",
Crown Prosecution Service ,05/01/2021,Crown Court Graduated Fee Scheme,West Midlands Crown Court Unit,St Philips Chambers,669936 KHQC,"29,370.60",Y
Crown Prosecution Service ,05/01/2021,National Insurance payable,Balance Sheet,HM Revenue and Customs,948PB000021422109,"4,171,427.31",
Crown Prosecution Service ,05/01/2021,Apprenticeship Levy payments Permanent,Other Corporate Programme Payments,HM Revenue and Customs,948PB000021422109,"104,805.30",
Crown Prosecution Service ,05/01/2021,Apprenticeship Levy payments Permanent,Other Corporate Admin Payments,HM Revenue and Customs,948PB000021422109,"6,689.70",
Crown Prosecution Service ,05/01/2021,PAYE payable,Balance Sheet,HM Revenue and Customs,948PB000021422109,"3,323,568.29",
Crown Prosecution Service ,05/01/2021,Crown Court Graduated Fee Scheme,London North Complex Casework Unit,6 Kings Bench Walk- Chambers of D Fisher & D Perry,99424 LM,"49,182.00",Y
Crown Prosecution Service ,05/01/2021,Recoverable VAT control,Balance Sheet,CGI IT UK Ltd,GB014049380,"16,376.29",Y
Crown Prosecution Service ,05/01/2021,IT services,Service Desk Contract,CGI IT UK Ltd,GB014049380,"81,881.47",
Crown Prosecution Service ,05/01/2021,IT services,DTS Programme Project Cost,Green Lemon Company Ltd Haywards Heath,GLC_Invoice_2020-12_348,"72,870.00",Y
Crown Prosecution Service ,06/01/2021,IT Professional Services Design & Development Hardware & Software: Non Capital Purchases,DTS Programme Project Cost,ICS.AI Ltd Basingstoke,0000000071-1,"25,233.00",Y
Crown Prosecution Service ,06/01/2021,New Works: non capital,Estate and FM: Programme,Government Property Agency London,00000001/5605,"132,964.20",Y
Crown Prosecution Service ,06/01/2021,National non domestic rates,Estate and FM: Programme,Government Property Agency London,5791,"48,288.00",
Crown Prosecution Service ,06/01/2021,National non domestic rates,Estate and FM: Administration,Government Property Agency London,5792,"21,316.76",
Crown Prosecution Service ,06/01/2021,Landlord service charge,Estate and FM: Administration,Government Property Agency London,5792,"31,530.18",
Crown Prosecution Service ,06/01/2021,National non domestic rates,Estate and FM: Administration,Government Property Agency London,5796,"121,867.19",
Crown Prosecution Service ,06/01/2021,Landlord service charge,Estate and FM: Programme,Government Property Agency London,5797,"25,764.09",
Crown Prosecution Service ,06/01/2021,National non domestic rates,Estate and FM: Administration,Government Property Agency London,5797,"18,560.00",
Crown Prosecution Service ,06/01/2021,Landlord service charge,Estate and FM: Administration,Government Property Agency London,5800,"524,399.90",
Crown Prosecution Service ,06/01/2021,Landlord service charge,Estate and FM: Programme,Government Property Agency London,5800,"2,560,305.36",
Crown Prosecution Service ,06/01/2021,National non domestic rates,Estate and FM: Administration,Government Property Agency London,5800,"169,117.12",
Crown Prosecution Service ,06/01/2021,National non domestic rates,Estate and FM: Programme,Government Property Agency London,5800,"825,689.52",
Crown Prosecution Service ,06/01/2021,Landlord service charge,Estate and FM: Programme,Government Property Agency London,5803,"27,811.90",
Crown Prosecution Service ,06/01/2021,National non domestic rates,Estate and FM: Programme,Government Property Agency London,5803,"30,798.00",
Crown Prosecution Service ,06/01/2021,Landlord service charge,Estate and FM: Programme,Government Property Agency London,5808,"41,015.04",
Crown Prosecution Service ,06/01/2021,National non domestic rates,Estate and FM: Programme,Government Property Agency London,5808,"36,419.42",
Crown Prosecution Service ,06/01/2021,Landlord service charge,Estate and FM: Programme,Government Property Agency London,5809,"87,427.16",
Crown Prosecution Service ,06/01/2021,National non domestic rates,Estate and FM: Programme,Government Property Agency London,5809,"50,685.00",
Crown Prosecution Service ,06/01/2021,National non domestic rates,Estate and FM: Programme,Government Property Agency London,5811,"50,944.00",
Crown Prosecution Service ,06/01/2021,Landlord service charge,Estate and FM: Programme,Government Property Agency London,5813,"5,119.04",
Crown Prosecution Service ,06/01/2021,National non domestic rates,Estate and FM: Programme,Government Property Agency London,5813,"33,787.60",
Crown Prosecution Service ,06/01/2021,Landlord service charge,Estate and FM: Programme,Government Property Agency London,5815,"13,250.00",
Crown Prosecution Service ,06/01/2021,National non domestic rates,Estate and FM: Programme,Government Property Agency London,5815,"34,816.00",
Crown Prosecution Service ,06/01/2021,Landlord service charge,Estate and FM: Administration,Government Property Agency London,5816,"35,396.74",
Crown Prosecution Service ,06/01/2021,Landlord service charge,Estate and FM: Programme,Government Property Agency London,5816,"35,396.76",
Crown Prosecution Service ,06/01/2021,National non domestic rates,Estate and FM: Administration,Government Property Agency London,5816,"17,582.50",
Crown Prosecution Service ,06/01/2021,National non domestic rates,Estate and FM: Programme,Government Property Agency London,5816,"17,582.50",
Crown Prosecution Service ,06/01/2021,Landlord service charge,Estate and FM: Programme,Government Property Agency London,5817,"20,631.20",
Crown Prosecution Service ,06/01/2021,National non domestic rates,Estate and FM: Programme,Government Property Agency London,5817,"14,208.00",
Crown Prosecution Service ,06/01/2021,Landlord service charge,Estate and FM: Programme,Government Property Agency London,5818,"39,572.21",
Crown Prosecution Service ,06/01/2021,National non domestic rates,Estate and FM: Programme,Government Property Agency London,5818,"31,488.00",
Crown Prosecution Service ,06/01/2021,Landlord service charge,Estate and FM: Programme,Government Property Agency London,5824,"128,662.56",
Crown Prosecution Service ,06/01/2021,National non domestic rates,Estate and FM: Programme,Government Property Agency London,5824,"129,778.45",
Crown Prosecution Service ,06/01/2021,Landlord service charge,Estate and FM: Programme,Government Property Agency London,5825,"30,926.64",
Crown Prosecution Service ,06/01/2021,National non domestic rates,Estate and FM: Programme,Government Property Agency London,5825,"69,078.75",
Crown Prosecution Service ,06/01/2021,Landlord service charge,Estate and FM: Programme,Government Property Agency London,5827,"28,734.12",
Crown Prosecution Service ,06/01/2021,National non domestic rates,Estate and FM: Programme,Government Property Agency London,5827,"24,427.34",
Crown Prosecution Service ,06/01/2021,Landlord service charge,Estate and FM: Programme,Government Property Agency London,5828,"25,257.64",
Crown Prosecution Service ,06/01/2021,National non domestic rates,Estate and FM: Programme,Government Property Agency London,5828,"8,266.14",
Crown Prosecution Service ,06/01/2021,Landlord service charge,Estate and FM: Programme,Government Property Agency London,5830,"49,341.43",
Crown Prosecution Service ,06/01/2021,National non domestic rates,Estate and FM: Programme,Government Property Agency London,5830,"59,455.00",
Crown Prosecution Service ,07/01/2021,Crown Court Graduated Fee Scheme,London North Complex Casework Unit,2 Harcourt Buildings,108032 JD,"37,264.25",Y
Crown Prosecution Service ,07/01/2021,Crown Court Graduated Fee Scheme,North West Complex Casework Unit,Harrington Street Chambers,1131153/IU,"58,457.70",Y
Crown Prosecution Service ,07/01/2021,Crown Court Graduated Fee Scheme,Thames Chiltern Crown Court Unit,23 Essex Street Chambers,178837-EM-TRIAL,"56,331.54",Y
Crown Prosecution Service ,07/01/2021,Crown Court Graduated Fee Scheme,Thames Chiltern Crown Court Unit,23 Essex Street Chambers,178837-SAM-TRIAL,"29,712.84",Y
Crown Prosecution Service ,07/01/2021,New Works: non capital,Estate and FM: Programme,Police and Crime Commissioner For Essex,1800047566,"38,674.04",Y
Crown Prosecution Service ,07/01/2021,Crown Court Graduated Fee Scheme,East Midlands Crown Court Section,1 High Pavement Chambers,269387/Walsh/PLj1,"28,402.61",Y
Crown Prosecution Service ,07/01/2021,Crown Court Graduated Fee Scheme,East Midlands Crown Court Section,2 Kings Bench Walk London,276158-SHQC,"30,676.50",Y
Crown Prosecution Service ,07/01/2021,Crown Court Graduated Fee Scheme,Yorks and Humbs CC Legal,New Park Court Chambers Leeds,357430/STKQC,"37,852.88",Y
Crown Prosecution Service ,07/01/2021,Crown Court Graduated Fee Scheme,Mersey Cheshire Complex Casework Unit,Exchange Chambers - Liverpool & Leeds,554737 - GC,"47,459.70",Y
Crown Prosecution Service ,07/01/2021,Crown Court Graduated Fee Scheme,Mersey Cheshire Complex Casework Unit,Exchange Chambers - Liverpool & Leeds,554737 - NED,"27,740.40",Y
Crown Prosecution Service ,08/01/2021,Crown Court Graduated Fee Scheme,London North Crown Court Unit,Red Lion Chambers (18 RLC),155296KB2ndtrial,"36,295.84",Y
Crown Prosecution Service ,08/01/2021,Crown Court Graduated Fee Scheme,London North Crown Court Unit,Red Lion Chambers (18 RLC),155296KBtrial2711cla,"41,995.84",Y
Crown Prosecution Service ,11/01/2021,Recoverable VAT control,Balance Sheet,Government Property Agency London,00000001/5877,"23,758.70",Y
Crown Prosecution Service ,11/01/2021,Reactive Maintenance,Estate and FM: Programme,Government Property Agency London,00000001/5877,"118,793.52",
Crown Prosecution Service ,11/01/2021,Recoverable VAT control,Balance Sheet,Government Property Agency London,00000001/5881,"7,215.55",Y
Crown Prosecution Service ,11/01/2021,Reactive Maintenance,Estate and FM: Programme,Government Property Agency London,00000001/5881,"36,077.77",
Crown Prosecution Service ,11/01/2021,Crown Court Graduated Fee Scheme,East Midlands Crown Court Section,36 Bedford Row,199952-JJH/AMJ,"45,080.03",Y
Crown Prosecution Service ,11/01/2021,Crown Court Graduated Fee Scheme,East Midlands Crown Court Section,36 Bedford Row,199952-MCL,"89,523.50",Y
Crown Prosecution Service ,11/01/2021,Crown Court Very High Cost Cases Full Scheme,Organised Crime North,Lincoln House Chambers,234999 MA STAGE 5,"33,239.60",Y
Crown Prosecution Service ,11/01/2021,Crown Court Very High Cost Cases Full Scheme,Cymru Wales Complex Casework Unit,30 Park Place Chambers,618080-3/AJ,"37,488.00",Y
Crown Prosecution Service ,11/01/2021,Crown Court Very High Cost Cases Full Scheme,Cymru Wales Complex Casework Unit,Linenhall Chambers,618080-3/FT,"27,394.16",Y
Crown Prosecution Service ,11/01/2021,Recoverable VAT control,Balance Sheet,CGI IT UK Ltd,GB014050421,"68,771.75",Y
Crown Prosecution Service ,11/01/2021,IT services,Apps and Hosting Contract,CGI IT UK Ltd,GB014050421,"343,858.77",
Crown Prosecution Service ,11/01/2021,Recoverable VAT control,Balance Sheet,CGI IT UK Ltd,GB014050904,"90,163.25",Y
Crown Prosecution Service ,11/01/2021,IT services,DTS Programme Project Cost,CGI IT UK Ltd,GB014050904,"450,816.27",
Crown Prosecution Service ,11/01/2021,IT services,DTS Programme Project Cost,CGI IT UK Ltd,GB014051009,"151,870.00",
Crown Prosecution Service ,11/01/2021,Recoverable VAT control,Balance Sheet,CGI IT UK Ltd,GB014051009,"30,374.00",Y
Crown Prosecution Service ,11/01/2021,Recoverable VAT control,Balance Sheet,CGI IT UK Ltd,GB014051123a,"16,376.29",Y
Crown Prosecution Service ,11/01/2021,IT services,Service Desk Contract,CGI IT UK Ltd,GB014051123a,"81,881.47",
Crown Prosecution Service ,11/01/2021,IT services,Apps and Hosting Contract,CGI IT UK Ltd,GB014051153,"381,873.52",
Crown Prosecution Service ,11/01/2021,Recoverable VAT control,Balance Sheet,CGI IT UK Ltd,GB014051153,"76,374.70",Y
Crown Prosecution Service ,11/01/2021,Recoverable VAT control,Balance Sheet,CGI IT UK Ltd,GB014051290,"14,916.39",Y
Crown Prosecution Service ,11/01/2021,IT services,Apps and Hosting Contract,CGI IT UK Ltd,GB014051290,"74,581.95",
Crown Prosecution Service ,11/01/2021,Crown Court Graduated Fee Scheme,Northumbria Crown Court Unit,Park Square Barristers (No 6 and Sovereign merged),KMQC 455427,"29,537.40",Y
Crown Prosecution Service ,11/01/2021,Crown Court Graduated Fee Scheme,Organised Crime London,3 Raymond Buildings,WEJ/248171,"108,425.40",Y
Crown Prosecution Service ,12/01/2021,Recoverable VAT control,Balance Sheet,Government Property Agency London,00000001/5079,"81,100.00",Y
Crown Prosecution Service ,12/01/2021,Property management fees,Estate and FM: Programme,Government Property Agency London,00000001/5079,"405,500.00",
Crown Prosecution Service ,12/01/2021,Crown Court Graduated Fee Scheme,East of England Crown Court,2 Bedford Row Chambers,HLW 192345 2,"36,875.16",Y
Crown Prosecution Service ,12/01/2021,Crown Court Graduated Fee Scheme,East of England Crown Court,2 Bedford Row Chambers,LS 192345,"25,428.18",Y
Crown Prosecution Service ,12/01/2021,Other Staff Costs,Other Corporate Admin Payments,Reward Gateway (UK) Ltd,UK020708SI,"30,000.00",
Crown Prosecution Service ,13/01/2021,Crown Court Graduated Fee Scheme,North West Complex Casework Unit,Harrington Street Chambers,1131153/AJF,"35,719.20",Y
Crown Prosecution Service ,13/01/2021,Recoverable VAT control,Balance Sheet,Century Link,190098340/1025246,"31,697.96",Y
Crown Prosecution Service ,13/01/2021,IT services,PSN Services Contract,Century Link,190098340/1025246,"158,489.82",
Crown Prosecution Service ,13/01/2021,Recoverable VAT control,Balance Sheet,Century Link,190100070/1026093,"27,866.47",Y
Crown Prosecution Service ,13/01/2021,IT services,PSN Connectivity Contract,Century Link,190100070/1026093,"139,332.38",
Crown Prosecution Service ,13/01/2021,Crown Court Graduated Fee Scheme,North West Complex Casework Unit,Lincoln House Chambers,240192 HBL TRIAL,"35,889.06",Y
Crown Prosecution Service ,13/01/2021,Crown Court Graduated Fee Scheme,North West Crown Court Hub,Lincoln House Chambers,242312 TS QC,"27,499.20",Y
Crown Prosecution Service ,13/01/2021,IT services,IT Compass Contract,Accenture (UK) Ltd London,3003493889,"50,400.00",Y
Crown Prosecution Service ,13/01/2021,Crown Court Very High Cost Cases Full Scheme,North East Complex Casework Unit,New Park Court Chambers Leeds,347454-6/RSQC,"28,454.00",Y
Crown Prosecution Service ,13/01/2021,Crown Court Graduated Fee Scheme,North West Crown Court Hub,Exchange Chambers - Liverpool & Leeds,557234 - NJ,"26,208.00",Y
Crown Prosecution Service ,13/01/2021,Crown Court Graduated Fee Scheme,London North Complex Casework Unit,QEB Hollis Whiteman Chambers,CA/108968,"65,384.08",Y
Crown Prosecution Service ,14/01/2021,Crown Court Graduated Fee Scheme,London North Complex Casework Unit,23 Essex Street Chambers,179532-NR-TRIAL,"31,773.79",Y
Crown Prosecution Service ,14/01/2021,IT services,DTS Programme Project Cost,CGI IT UK Ltd,GB014051466,"50,263.40",Y
Crown Prosecution Service ,14/01/2021,IT services,DTS Programme Project Cost,CGI IT UK Ltd,GB014051479,"112,745.17",Y
Crown Prosecution Service ,14/01/2021,IT services,DTS Programme Project Cost,CGI IT UK Ltd,GB014051568,"70,414.40",Y
Crown Prosecution Service ,14/01/2021,Crown Court Graduated Fee Scheme,Organised Crime London,5 King's Bench Walk,JP168637,"54,981.60",Y
Crown Prosecution Service ,15/01/2021,Crown Court Graduated Fee Scheme,East of England Crown Court,Nine Bedford Row (9 Bedford Row),140562jb,"87,013.20",Y
Crown Prosecution Service ,15/01/2021,Crown Court Graduated Fee Scheme,West Midlands Crown Court Unit,St Philips Chambers,657370 SLQC,"28,379.80",Y
Crown Prosecution Service ,15/01/2021,Landlord service charge,Estate and FM: Programme,Ministry of Defence Liverpool,7645714,"40,438.34",Y
Crown Prosecution Service ,18/01/2021,Crown Court Graduated Fee Scheme,Mersey Cheshire Complex Casework Unit,Harrington Street Chambers,1122655/AHW,"25,264.27",Y
Crown Prosecution Service ,18/01/2021,Crown Court Graduated Fee Scheme,Mersey Cheshire Complex Casework Unit,Harrington Street Chambers,1122655/KAS,"37,585.32",Y
Crown Prosecution Service ,18/01/2021,Crown Court Graduated Fee Scheme,North East Complex Casework Unit,New Park Court Chambers Leeds,356094-3/MXD,"27,546.00",Y
Crown Prosecution Service ,18/01/2021,Recoverable VAT control,Balance Sheet,Xerox (UK) Ltd,900205985,"19,710.01",Y
Crown Prosecution Service ,18/01/2021,Printing Costs,Print Contract,Xerox (UK) Ltd,900205985,"98,550.07",
Crown Prosecution Service ,18/01/2021,Crown Court Graduated Fee Scheme,Thames and Chiltern Complex Casework Unit,5 King's Bench Walk,CNQC171488,"80,134.73",Y
Crown Prosecution Service ,18/01/2021,IT services,DTS Programme Project Cost,Mobilise Cloud Services Limited London,CPSINV008,"32,484.60",Y
Crown Prosecution Service ,18/01/2021,IT services,DTS Programme Project Cost,CGI IT UK Ltd,GB014051652,"27,829.20",Y
Crown Prosecution Service ,18/01/2021,Recoverable VAT control,Balance Sheet,CGI IT UK Ltd,GB014051670,"25,765.40",Y
Crown Prosecution Service ,18/01/2021,IT services,DTS Programme Project Cost,CGI IT UK Ltd,GB014051670,"128,827.00",
Crown Prosecution Service ,18/01/2021,Recoverable VAT control,Balance Sheet,CGI IT UK Ltd,GB014051684,"10,112.69",Y
Crown Prosecution Service ,18/01/2021,IT services,Apps and Hosting Contract,CGI IT UK Ltd,GB014051684,"50,563.46",
Crown Prosecution Service ,18/01/2021,Recoverable VAT control,Balance Sheet,CGI IT UK Ltd,GB014051685,"10,163.98",Y
Crown Prosecution Service ,18/01/2021,IT services,Apps and Hosting Contract,CGI IT UK Ltd,GB014051685,"50,819.90",
Crown Prosecution Service ,20/01/2021,Other accommodation costs,Estate and FM: Programme,Government Property Agency London,00000001/5823,"168,019.82",
Crown Prosecution Service ,20/01/2021,National non domestic rates,Estate and FM: Programme,Government Property Agency London,00000001/5823,"26,056.00",
Crown Prosecution Service ,20/01/2021,Recoverable VAT control,Balance Sheet,Government Property Agency London,00000001/5888,"10,868.42",Y
Crown Prosecution Service ,20/01/2021,Reactive Maintenance,Estate and FM: Programme,Government Property Agency London,00000001/5888,"54,342.08",
Crown Prosecution Service ,20/01/2021,New Works: non capital,Estate and FM: Programme,Government Property Agency London,00000001/5889,"528,000.00",Y
Crown Prosecution Service ,20/01/2021,Advice/PreSending Very High Cost Cases Full Scheme,SFD North,St Pauls Chambers Leeds,140408 Inc Dec20,"31,080.00",Y
Crown Prosecution Service ,20/01/2021,Crown Court Graduated Fee Scheme,Yorks and Humbs CC Legal,Park Square Barristers (No 6 and Sovereign merged),457286 KMQC.,"32,482.68",Y
Crown Prosecution Service ,20/01/2021,External legal advice - HR casework,Litigation,Government Legal Department,489297,"29,047.76",Y
Crown Prosecution Service ,20/01/2021,Crown Court Graduated Fee Scheme,Special Crime Unit York,No 5 Fountain Court Chambers,744451/MPB/ATKIN1,"25,564.92",Y
Crown Prosecution Service ,20/01/2021,Landlord service charge,Estate and FM: Programme,Ministry of Defence Liverpool,7645712,"35,535.41",Y
Crown Prosecution Service ,20/01/2021,Recoverable VAT control,Balance Sheet,CGI IT UK Ltd,GB014051601,"90,555.95",Y
Crown Prosecution Service ,20/01/2021,IT services,DTS Programme Project Cost,CGI IT UK Ltd,GB014051601,"452,779.73",
Crown Prosecution Service ,20/01/2021,Professional subscriptions and memberships,North East Area Business Centre,Law Society,INV200486369,"33,554.00",
Crown Prosecution Service ,20/01/2021,Crown Court Graduated Fee Scheme,London North RASSO,Lamb Chambers,NES 221504,"29,689.08",Y
Crown Prosecution Service ,21/01/2021,Crown Court Graduated Fee Scheme,London North Complex Casework Unit,2 Hare Court Chambers -Chambers of Orlando Pownall,115210!!,"30,213.90",Y
Crown Prosecution Service ,21/01/2021,Crown Court Graduated Fee Scheme,Thames and Chiltern Complex Casework Unit,23 Essex Street Chambers,177635-ALB,"40,868.62",Y
Crown Prosecution Service ,21/01/2021,IT services,PSN Services Contract,Century Link,190562349/1027517,"122,176.89",Y
Crown Prosecution Service ,21/01/2021,Recoverable VAT control,Balance Sheet,Xerox (UK) Ltd,40004417,"21,469.29",Y
Crown Prosecution Service ,21/01/2021,Operating lease rentals � IT and Equipment,Print Contract,Xerox (UK) Ltd,40004417,"29,085.14",
Crown Prosecution Service ,21/01/2021,Printing Costs,Print Contract,Xerox (UK) Ltd,40004417,"78,261.30",
Crown Prosecution Service ,21/01/2021,Recoverable VAT control,Balance Sheet,KPMG LLP London,5502197070,"5,807.00",Y
Crown Prosecution Service ,21/01/2021,External Training,Leadership and Management Development,KPMG LLP London,5502197070,"29,035.00",
Crown Prosecution Service ,22/01/2021,Advice/PreSending Very High Cost Cases Full Scheme,SFD North,Red Lion Chambers (18 RLC),154212SCdec20,"25,311.00",Y
Crown Prosecution Service ,22/01/2021,Recoverable VAT control,Balance Sheet,AVR Transcription Ltd Bolton,34862-DEC-20,"9,043.41",Y
Crown Prosecution Service ,22/01/2021,Transcriptions and Translation,Other Corporate Programme Payments,AVR Transcription Ltd Bolton,34862-DEC-20,"45,217.03",
Crown Prosecution Service ,25/01/2021,Crown Court Graduated Fee Scheme,East Midlands Crown Court Section,36 Bedford Row,198977-LJ,"75,875.10",Y
Crown Prosecution Service ,25/01/2021,External legal advice - Civil litigation,Other Corporate Programme Payments,Government Legal Department,487279,"41,404.85",Y
Crown Prosecution Service ,25/01/2021,Crown Court Graduated Fee Scheme,London South Complex Casework Unit,6 Kings Bench Walk- Chambers of D Fisher & D Perry,99118 PJA,"26,887.20",Y
Crown Prosecution Service ,25/01/2021,Crown Court Graduated Fee Scheme,London South Complex Casework Unit,6 Kings Bench Walk- Chambers of D Fisher & D Perry,99118 TC,"53,725.32",Y
Crown Prosecution Service ,25/01/2021,Recoverable VAT control,Balance Sheet,CGI IT UK Ltd,GB014051942,"10,011.43",Y
Crown Prosecution Service ,25/01/2021,IT services,Apps and Hosting Contract,CGI IT UK Ltd,GB014051942,"50,057.14",
Crown Prosecution Service ,25/01/2021,Salary sacrifice suspense,Balance Sheet,Edenred,INV23031692,"38,595.70",
Crown Prosecution Service ,25/01/2021,Crown Court Graduated Fee Scheme,Special Crime Unit York,5 King's Bench Walk,LO169569,"40,008.00",Y
Crown Prosecution Service ,25/01/2021,IT services,IT Compass Contract,Vodafone Ltd formerly Cable and Wireless Milton Keynes,UK10/012021/8694,"45,511.87",Y
Crown Prosecution Service ,26/01/2021,Operating lease rentals Property,Estate and FM: Programme,Government Property Agency London,00000001/3303,"73,633.88",
Crown Prosecution Service ,26/01/2021,National non domestic rates,Estate and FM: Programme,Government Property Agency London,00000001/3303,"25,448.18",
Crown Prosecution Service ,26/01/2021,Landlord service charge,Estate and FM: Programme,Government Property Agency London,00000001/3303,"29,454.05",
Crown Prosecution Service ,27/01/2021,Crown Court Graduated Fee Scheme,East of England Complex Casework Unit,Red Lion Chambers (18 RLC),157017DWWtrialfees,"29,286.60",Y
Crown Prosecution Service ,27/01/2021,Crown Court Graduated Fee Scheme,London North Crown Court Unit,Furnival Chambers,166229 TSIL White,"47,850.60",Y
Crown Prosecution Service ,27/01/2021,Crown Court Graduated Fee Scheme,East Midlands Crown Court Section,36 Bedford Row,198977/JEC,"38,725.92",Y
Crown Prosecution Service ,27/01/2021,Crown Court Graduated Fee Scheme,Wessex Crown Court Unit,Pump Court Chambers - 3 Pump Court,264482-JNP,"30,547.80",Y
Crown Prosecution Service ,27/01/2021,Crown Court Graduated Fee Scheme,Cymru Wales South East Crown Court,Apex Chambers,44329-1/CLR,"31,733.64",Y
Crown Prosecution Service ,29/01/2021,Operating lease rentals Property,Estate and FM: Programme,Government Property Agency London,00000001/3654,"63,669.93",
